bitfinex/quotes_ETHUSD_20241203
["timestamp","ask_amount","ask_price","bid_price","bid_amount"]
[1733264769937,0.7933807,3616.6,3616.0,0.7614]
[1733264770143,0.7933807,3616.5,3616.0,0.7614]
[1733264770343,0.7933807,3616.4,3616.0,0.7614]
[1733264770569,0.7933807,3616.3,3615.7,0.7614]
[1733264770748,0.7933807,3616.2,3615.7,0.7614]
[1733264770946,0.7933807,3616.1,3615.7,0.7614]
[1733264771130,0.79312353,3616.0,3615.7,0.7614]
[1733264771326,0.20597174,3615.9,3615.7,0.7614]
[1733264771559,0.20588858,3615.8,3615.3,0.7614]
[1733264771831,0.20588858,3615.7,3615.3,0.7614]
[1733264772064,0.20588858,3615.6,3615.3,0.7614]
[1733264772241,0.257597,3616.2,3615.3,0.7614]
[1733264772242,0.58701872,3616.1,3615.3,0.7614]
[1733264772578,0.58701872,3616.1,3615.3,0.5614]
[1733264772579,0.20579814,3616.0,3615.3,0.5614]
[1733264772779,0.20579814,3615.9,3615.3,0.5614]
[1733264772951,0.20579814,3615.8,3615.3,0.5614]
[1733264773291,0.7549,3616.0,3615.3,0.5614]
[1733264773292,0.20579814,3615.7,3615.3,0.5614]
[1733264773432,0.7549,3616.0,3615.3,0.5614]
[1733264773633,0.20570548,3615.9,3615.3,0.5614]
[1733264773849,0.20570548,3615.8,3615.3,0.5614]
[1733264774050,0.7549,3616.0,3615.3,0.5614]
[1733264774051,0.20570548,3615.7,3615.3,0.5614]
[1733264774282,0.20570548,3615.9,3615.3,0.5614]
[1733264774584,0.20570548,3615.8,3615.3,0.5614]
[1733264774778,0.7549,3616.0,3615.3,0.5614]
[1733264774779,0.20570548,3615.7,3615.3,0.5614]
[1733264774934,0.20570548,3615.9,3615.3,0.5614]
[1733264775134,0.20570548,3615.8,3615.3,0.5614]
[1733264775379,0.20570548,3615.7,3615.3,0.5614]
[1733264775583,0.20570548,3615.9,3615.3,0.5614]
[1733264775784,0.20570548,3615.8,3615.3,0.5614]
[1733264775985,0.20570548,3615.7,3615.3,0.5614]
[1733264776136,0.20570548,3615.9,3615.1,2.76611]
[1733264776493,1.01201433,3616.0,3615.0,1.1733]
[1733264776494,0.20570548,3615.8,3615.2,2.76608]
[1733264776685,0.20570548,3615.8,3615.0,1.1733]
[1733264776686,0.20570548,3615.9,3615.0,1.1733]
[1733264778328,0.7549,3616.0,3615.2,2.76604]
[1733264779283,0.7549,3616.0,3615.2,2.74836819]
[1733264779690,0.7549,3616.0,3615.3,2.766]
[1733264780573,0.32942172,3616.1,3615.1,1.2789]
[1733264780782,0.32942172,3616.1,3615.4,2.76593]
[1733264781710,0.25677807,3616.2,3615.1,1.2789]
[1733264781711,0.58619979,3616.2,3615.3,2.766]
[1733264782414,0.32942172,3616.1,3615.3,2.766]
[1733264783722,0.32942172,3616.0,3615.3,2.766]
[1733264784040,0.32942172,3616.1,3615.3,2.766]
[1733264784313,0.32942172,3616.0,3615.1,1.2789]
[1733264784613,0.32908358,3615.9,3615.3,2.76601]
[1733264784824,0.32908358,3616.0,3615.3,2.76601]
[1733264785005,0.25677807,3616.1,3615.3,2.76601]
[1733264785006,0.32908358,3615.9,3615.3,2.76601]
[1733264785337,0.68508123,3616.2,3615.3,2.76601]
[1733264785973,0.27423632,3616.2,3615.3,2.76601]
[1733264786614,0.27423632,3616.2,3615.4,2.76588]
[1733264786803,0.27423632,3616.2,3615.5,4.00556]
[1733264787376,0.41263229,3616.2,3615.5,4.00556]
[1733264787888,0.27423632,3616.1,3615.5,4.00556]
[1733264788087,0.27454393,3616.1,3615.5,4.00556]
[1733264788515,0.13839487,3616.0,3615.5,4.00556]
[1733264788687,0.4129388,3616.1,3615.5,4.00556]
[1733264789280,0.82378371,3616.0,3615.5,4.00556]
[1733264789508,0.13839487,3615.9,3615.5,4.00556]
[1733264789681,0.20613878,3615.8,3615.5,4.00556]
[1733264789883,0.20613878,3615.7,3615.5,4.00556]
[1733264790082,0.20613878,3615.6,3615.5,4.00556]
[1733264790802,0.20613878,3615.6,3615.5,1.2397]
[1733264792301,0.34453365,3615.6,3615.5,1.2397]
[1733264792719,1.21259642,3615.7,3614.7,1.178]
[1733264792930,1.21259642,3615.4,3614.7,1.178]
[1733264793230,5.00187642,3615.1,3614.0,2.76694]
[1733264793379,1.03210454,3615.0,3614.1,2.76693]
[1733264793578,2.23569642,3615.1,3613.9,1.2509]
[1733264793579,1.03210454,3614.9,3613.9,1.2509]
[1733264793831,0.34463726,3614.8,3613.9,1.2509]
[1733264793990,0.34463726,3614.7,3613.9,1.2509]
[1733264794182,0.68746728,3614.9,3613.9,1.2509]
[1733264794183,0.20624018,3614.6,3613.9,4.01798]
[1733264794384,0.27498691,3614.9,3613.9,4.01798]
[1733264794385,0.20624018,3614.5,3613.9,4.01798]
[1733264794620,0.68746728,3614.9,3613.9,4.01798]
[1733264794621,0.20624018,3614.4,3613.9,4.01798]
[1733264794841,0.20624018,3614.3,3613.9,4.01798]
[1733264795124,0.20624018,3614.2,3613.9,4.01798]
[1733264795333,0.20624018,3614.1,3613.9,4.01798]
[1733264795487,0.20624018,3614.0,3613.9,4.01798]
[1733264798520,0.20630594,3614.0,3613.9,4.01798]
[1733264800396,0.53643086,3614.0,3613.9,4.01798]
[1733264800910,0.79431399,3614.0,3613.9,4.01798]
[1733264801407,0.53643086,3614.0,3613.9,4.01798]
[1733264802140,0.53643086,3614.0,3613.9,2.76708]
[1733264802433,0.93271225,3614.0,3613.9,2.76708]
[1733264802811,0.93271225,3614.0,3613.9,2.75266]
[1733264804201,0.93271225,3614.0,3612.5,0.43309947]
[1733264804202,1.98251225,3614.0,3612.5,0.43309947]
[1733264804516,1.0498,3613.1,3611.7,1.2065]
[1733264804698,0.27507459,3612.6,3611.7,1.2065]
[1733264804900,0.93271225,3612.5,3611.7,1.2065]
[1733264805142,2.67014468,3612.4,3611.7,1.2065]
[1733264805357,0.25784122,3612.3,3611.5,2.76892]
[1733264805502,0.25784122,3612.3,3611.2,1.1779]
[1733264805503,0.72580039,3612.2,3611.6,2.76884]
[1733264805842,1.18933363,3612.1,3611.6,2.76884]
[1733264806053,1.18933363,3612.1,3611.2,1.1779]
[1733264806054,1.18933363,3612.0,3611.2,1.1779]
[1733264806198,0.53643086,3611.9,3611.2,1.1779]
[1733264806402,0.53643086,3611.8,3611.3,2.76908]
[1733264806627,0.27507459,3612.3,3611.2,1.1779]
[1733264806628,0.53643086,3611.7,3611.4,2.76897]
[1733264806944,0.20630594,3611.6,3611.4,2.76897]
[1733264807146,0.20630594,3611.5,3611.4,2.76897]
[1733264808253,0.13853553,3612.3,3611.4,2.76897]
[1733264808458,1.32487459,3612.4,3611.5,2.76891]
[1733264808459,0.53323276,3612.2,3611.5,2.76891]
[1733264808755,0.53323276,3612.1,3611.5,2.76891]
[1733264809061,0.53323276,3612.0,3611.5,2.76887]
[1733264809239,0.53323276,3611.9,3611.5,2.76887]
[1733264809441,0.20509079,3611.8,3611.5,2.76887]
[1733264809631,1.0498,3612.4,3611.3,2.76905]
[1733264809632,0.20509079,3611.7,3611.3,2.76905]
[1733264809826,1.18833553,3612.4,3611.2,2.76909]
[1733264809827,0.20509079,3611.6,3611.2,2.76909]
[1733264810043,0.20509079,3611.5,3611.2,2.76909]
[1733264810243,0.32814197,3611.9,3611.2,2.76909]
[1733264810565,0.5137368,3612.5,3611.0,0.75]
[1733264810566,0.53295211,3611.8,3611.0,0.75]
[1733264810850,1.0498,3612.2,3611.0,0.75]
[1733264810851,0.53295211,3611.7,3611.2,2.76915]
[1733264811015,1.0498,3612.2,3611.3,2.76903]
[1733264811016,0.20481014,3611.6,3611.3,2.76903]
[1733264811216,1.0498,3612.2,3611.3,2.76903]
[1733264811217,0.20481014,3611.5,3611.3,2.76903]
[1733264811416,1.0498,3612.2,3611.3,2.76903]
[1733264811417,0.32814197,3611.9,3611.3,2.76903]
[1733264811699,0.20468031,3611.8,3611.3,2.76903]
[1733264811843,0.20468031,3611.7,3611.0,3.51927]
[1733264812044,0.20468031,3611.6,3611.0,3.51927]
[1733264812242,1.0498,3612.2,3611.4,2.76893]
[1733264812444,0.53216406,3612.1,3611.4,2.76895]
[1733264812648,0.53216406,3612.0,3611.5,2.76888]
[1733264812945,0.20467901,3611.9,3611.5,2.755902]
[1733264813158,0.20467901,3611.8,3611.5,2.755902]
[1733264813342,0.20467901,3611.7,3611.5,2.755902]
[1733264813540,0.32748505,3612.1,3611.0,0.75]
[1733264813740,0.20453077,3612.0,3611.7,2.76872]
[1733264813954,0.20453077,3611.9,3611.8,2.7687]
[1733264819296,0.20453077,3611.9,3611.0,0.75]
[1733264819596,1.0498,3612.2,3611.0,0.75]
[1733264819597,0.20453077,3611.8,3611.7,2.76877]
[1733264819743,0.20462117,3611.8,3611.7,2.76877]
[1733264820151,1.0498,3612.2,3611.9,2.76858]
[1733264820462,0.20464909,3612.1,3611.9,2.76858]
[1733264820695,1.0498,3612.2,3611.9,2.76858]
[1733264820696,0.20464909,3612.0,3611.9,2.76858]
[1733264821371,0.53204297,3612.0,3611.9,2.76858]
[1733264821575,0.20464909,3612.0,3611.9,2.76858]
[1733264821749,0.20464909,3612.0,3611.0,0.75]
[1733264821956,0.20464909,3611.9,3611.8,2.76867]
[1733264822861,0.20464909,3611.9,3611.8,2.7569898]
[1733264823276,0.23184909,3611.9,3611.8,2.7569898]
[1733264825608,0.23213704,3611.9,3611.8,2.7569898]
[1733264825767,0.23213704,3611.9,3611.7,2.76875]
[1733264826095,0.20493704,3611.8,3611.7,2.76875]
[1733264826698,1.25473704,3611.8,3611.0,1.5]
[1733264826900,1.25473704,3611.8,3611.4,2.76898]
[1733264826901,0.6713871,3611.7,3611.4,2.76898]
[1733264827104,0.53283631,3611.6,3611.4,2.76898]
[1733264827286,0.53283631,3611.5,3611.4,2.76898]
[1733264829015,0.7891911,3611.5,3611.4,2.76898]
[1733264829512,0.92774038,3611.5,3611.4,2.76898]
[1733264832390,1.33921185,3611.5,3611.4,2.76898]
[1733264832877,1.33921185,3611.5,3611.4,2.75846782]
[1733264833092,1.33997091,3611.5,3611.4,2.75846782]
[1733264833287,1.59744858,3611.5,3611.4,2.75846782]
[1733264834276,1.77062949,3611.5,3611.4,2.75846782]
[1733264835324,1.79782949,3611.5,3611.4,3.4295136]
[1733264835691,1.79782949,3611.5,3611.4,4.6123136]
[1733264835894,1.79781035,3611.5,3611.4,4.6123136]
[1733264836092,1.90022836,3611.5,3611.4,4.6123136]
[1733264836281,1.23708709,3611.5,3611.4,4.6123136]
[1733264836484,0.52437101,3611.5,3611.4,4.6123136]
[1733264836820,0.2805659,3611.5,3611.4,4.6123136]
[1733264837176,0.43061149,3612.1,3612.0,3.95134]
[1733264837393,1.0691,3612.9,3612.0,3.95134]
[1733264837394,0.43061149,3612.2,3612.1,2.76847]
[1733264837574,1.0691,3612.9,3612.2,2.76839]
[1733264837575,0.43061149,3612.3,3612.2,2.76839]
[1733264838038,0.43061149,3612.3,3612.2,2.67378038]
[1733264838501,1.0691,3612.9,3612.2,2.67378038]
[1733264838821,1.0691,3612.9,3612.0,1.1828]
[1733264839021,0.43026518,3612.1,3612.0,3.95134]
[1733264839180,1.0691,3612.9,3612.1,2.76847]
[1733264839181,0.43026518,3612.2,3612.1,2.76847]
[1733264842405,0.45746518,3612.3,3612.2,2.76839]
[1733264843321,0.0272,3612.3,3612.2,2.76839]
[1733264843507,0.457469,3612.3,3612.2,2.76839]
[1733264844724,0.5959863,3612.3,3612.2,2.76839]
[1733264844927,0.1657173,3612.3,3612.2,2.76839]
[1733264845089,0.5959458,3612.3,3612.2,2.76839]
[1733264845285,0.1657173,3612.3,3612.2,2.76839]
[1733264845490,0.59590976,3612.3,3612.2,2.76839]
[1733264846856,0.49606366,3612.3,3612.2,2.76839]
[1733264847132,1.33913714,3612.3,3612.2,2.76839]
[1733264847333,0.90899761,3612.3,3612.2,2.76839]
[1733264847518,1.33913714,3612.3,3612.2,2.76839]
[1733264847695,0.90899761,3612.3,3612.2,2.76839]
[1733264848319,1.18427837,3612.3,3612.2,2.76839]
[1733264848519,1.39073903,3612.3,3612.2,2.76839]
[1733264848757,1.64881485,3612.3,3612.2,2.76839]
[1733264849029,1.37353409,3612.3,3612.2,2.76839]
[1733264849438,1.64880507,3612.3,3612.2,2.76839]
[1733264850442,1.37350868,3612.3,3612.2,2.76839]
[1733264853764,1.23499387,3612.3,3612.2,2.76839]
[1733264853937,1.23488318,3612.3,3612.2,2.76839]
[1733264854267,1.3733981,3612.3,3612.2,2.76839]
[1733264854569,1.23488318,3612.3,3612.2,2.76839]
[1733264854729,1.37339764,3612.3,3612.2,2.76839]
[1733264855622,1.23488318,3612.3,3612.2,2.76839]
[1733264855949,1.37339764,3612.3,3612.2,2.76839]
[1733264856462,2.44249764,3612.3,3612.1,2.76844]
[1733264856764,1.34619764,3612.2,3612.1,2.76844]
[1733264857839,1.20768318,3612.2,3612.1,2.76844]
[1733264858244,1.34620499,3612.2,3612.1,2.76844]
[1733264861088,1.20773375,3612.2,3612.1,2.76844]
[1733264861274,1.34625971,3612.2,3612.1,2.76844]
[1733264861463,1.20773375,3612.2,3612.1,2.76844]
[1733264862288,1.3462581,3612.2,3611.9,2.7686]
[1733264862498,1.3462581,3612.2,3611.6,3.98409]
[1733264862499,1.3462581,3612.1,3611.6,5.13923361]
[1733264862788,0.7951608,3612.0,3611.8,2.76869]
[1733264862950,1.0538,3612.1,3611.9,2.76862]
[1733264863294,1.23540493,3612.0,3611.7,2.76875]
[1733264863498,1.20820493,3611.9,3611.7,2.76875]
[1733264863785,0.79515475,3611.8,3611.7,2.76875]
[1733264863987,0.79515475,3611.8,3611.7,4.1362979]
[1733264864661,0.79515475,3611.8,3611.7,2.76875]
[1733264864662,1.34688366,3611.8,3611.7,2.76875]
[1733264864889,1.23554705,3611.8,3611.7,2.76875]
[1733264865061,1.37408521,3611.8,3611.7,2.76875]
[1733264865265,1.23554705,3611.8,3611.7,2.76875]
[1733264865875,1.37408532,3611.8,3611.7,2.76875]
[1733264866079,1.23554705,3611.8,3611.7,2.76875]
[1733264867198,1.23554705,3611.8,3611.4,1.15514361]
[1733264867199,1.37408553,3611.8,3611.3,2.34734361]
[1733264867403,0.0272,3611.8,3611.7,2.76877]
[1733264867562,1.37400139,3611.8,3611.7,2.76877]
[1733264867958,1.37406639,3611.8,3611.7,2.76877]
[1733264871382,0.0272,3611.8,3611.7,2.76877]
[1733264871577,1.23488005,3611.8,3611.7,2.76877]
[1733264872002,1.37341722,3611.8,3611.7,2.76877]
[1733264872317,1.23488005,3611.8,3611.7,2.76877]
[1733264872910,1.0538,3611.7,3611.4,0.02719497]
[1733264873080,1.34621603,3611.6,3611.4,0.02719497]
[1733264873280,1.34621603,3611.5,3611.4,0.02719497]
[1733264873480,1.20768005,3611.5,3611.4,0.02719497]
[1733264873812,1.34621603,3611.5,3611.4,0.02719497]
[1733264873981,1.20768005,3611.5,3611.4,0.02719497]
[1733264876697,1.20768005,3611.5,3611.4,2.79619497]
[1733264876698,0.79479798,3611.5,3611.4,2.79619497]
[1733264876902,0.79479798,3611.5,3611.4,3.31787025]
[1733264877094,0.82199798,3611.5,3611.4,3.31787025]
[1733264877425,0.82199798,3611.5,3611.4,2.79619497]
[1733264882004,0.49169232,3611.5,3611.4,2.79619497]
[1733264882205,0.23364103,3611.5,3611.4,4.16282391]
[1733264882437,0.0272,3611.5,3611.4,5.45722391]
[1733264882639,0.0272,3611.5,3611.4,6.61236752]
[1733264883048,0.0272,3611.5,3611.4,7.84526159]
[1733264883419,0.0272,3611.5,3611.4,7.85117773]
[1733264883812,0.0272,3611.5,3611.4,6.69011798]
[1733264884464,0.0272,3611.5,3611.4,7.85121299]
[1733264884739,0.0272,3611.5,3611.4,7.82403592]
[1733264884942,0.0272,3611.5,3611.4,6.66292301]
[1733264886119,0.0272,3611.5,3611.4,7.82398613]
[1733264886514,0.0272,3611.5,3611.4,9.66292301]
[1733264886723,0.25783718,3611.9,3611.8,2.7687]
[1733264886971,0.4125725,3612.3,3612.0,2.76854]
[1733264887169,0.2062723,3612.2,3611.9,2.48055778]
[1733264887484,0.4125725,3612.3,3612.2,2.76839]
[1733264887646,0.79412902,3612.3,3612.2,2.76839]
[1733264887837,0.536295,3612.3,3612.2,3.98304778]
[1733264888040,0.79413928,3612.3,3612.2,3.98304778]
[1733264888287,0.79417137,3612.3,3612.2,3.98304778]
[1733264888641,0.79417137,3612.3,3612.2,2.76839]
[1733264889237,0.79417137,3612.3,3612.2,3.44354178]
[1733264889441,0.79417137,3612.3,3612.2,4.63114178]
[1733264889669,0.46412393,3612.3,3612.2,4.63114178]
[1733264890677,0.20627965,3612.3,3612.2,4.63114178]
[1733264891543,0.20616441,3612.3,3612.2,4.63114178]
[1733264891743,1.0538,3613.0,3612.2,1.86275178]
[1733264891940,1.0538,3613.0,3612.9,2.76785]
[1733264892198,2.29926939,3613.0,3612.9,2.76785]
[1733264892500,1.34445985,3613.0,3612.9,2.76785]
[1733264892658,1.20596773,3613.0,3612.9,2.76785]
[1733264892846,1.34445985,3613.0,3612.9,2.76785]
[1733264893041,1.20596773,3613.0,3612.9,2.76785]
[1733264893680,0.79367101,3613.0,3612.9,2.76785]
[1733264893856,1.20596773,3613.0,3612.9,2.76785]
[1733264894053,0.79367101,3613.0,3612.9,2.76785]
[1733264894269,1.20596773,3613.0,3612.9,2.76785]
[1733264894492,0.82087101,3613.0,3612.9,2.76785]
[1733264895316,0.8205746,3613.0,3612.9,2.76785]
[1733264895475,0.8205746,3613.0,3612.9,3.56435278]
[1733264895674,0.23334829,3613.0,3612.9,3.56435278]
[1733264895897,0.0272,3613.0,3612.9,3.56435278]
[1733264896110,0.0272,3613.0,3612.9,4.86685278]
[1733264898172,0.0272,3613.0,3612.9,7.86685278]
[1733264898375,0.41182247,3614.1,3612.9,7.86685278]
[1733264898376,0.25724117,3613.8,3613.4,2.76747]
[1733264898571,0.25724117,3613.9,3613.7,2.76724]
[1733264898796,0.58624223,3614.0,3613.9,2.76709]
[1733264898999,0.20561869,3614.0,3613.9,2.76709]
[1733264900384,0.20561869,3614.3,3614.2,2.76686]
[1733264900733,0.23281869,3614.3,3614.2,2.76686]
[1733264905235,0.23281869,3614.3,3614.0,2.76694]
[1733264905442,0.20561869,3614.2,3614.1,2.76694]
[1733264905624,0.23281869,3614.2,3614.1,2.76694]
[1733264905828,0.0272,3614.2,3614.1,2.76694]
[1733264906351,0.23281869,3614.2,3614.1,2.76694]
[1733264906546,0.0272,3614.2,3614.1,2.76694]
[1733264907017,0.23281869,3614.2,3614.1,2.76694]
[1733264907202,0.0272,3614.2,3614.1,2.76694]
[1733264907402,0.23281869,3614.2,3614.1,2.76694]
[1733264907849,0.0272,3614.2,3613.9,2.76702]
[1733264908032,0.20561869,3614.1,3613.9,2.76702]
[1733264908214,0.20561869,3614.1,3613.5,4.04526]
[1733264908215,0.20561869,3614.1,3613.5,1.2779]
[1733264908415,0.20561869,3614.0,3613.8,2.7671]
[1733264908620,0.20561869,3614.1,3613.8,2.7671]
[1733264908843,1.30471869,3614.0,3613.5,2.49255778]
[1733264909056,0.20561869,3613.9,3613.6,2.76728]
[1733264909210,0.20561869,3613.9,3613.5,1.21465778]
[1733264909410,1.1263,3614.0,3613.8,2.76717]
[1733264909604,0.20561869,3613.9,3613.8,2.76717]
[1733264912608,0.20539184,3613.9,3613.5,3.98198778]
[1733264912809,0.20539184,3613.8,3613.5,3.98198778]
[1733264913061,1.1263,3614.0,3613.8,2.76717]
[1733264913218,0.20539712,3613.9,3613.8,2.76717]
[1733264916112,0.28408007,3614.0,3613.9,2.76709]
[1733264916314,0.81838705,3614.0,3613.9,2.76709]
[1733264916549,0.48957784,3614.0,3613.9,2.76709]
[1733264916853,0.81838705,3614.0,3613.9,2.76709]
[1733264917010,0.48957784,3614.0,3613.9,2.76709]
[1733264917247,0.81838705,3614.0,3613.9,2.76709]
[1733264917643,0.81838705,3614.0,3613.5,1.21465778]
[1733264917847,0.79118705,3613.9,3613.8,2.76716]
[1733264919587,0.79150139,3613.9,3613.8,2.76716]
[1733264921697,0.79150139,3613.9,3613.8,2.76716]
[1733264922345,1.20301245,3613.9,3613.8,2.76716]
[1733264923386,1.34146534,3613.9,3613.8,2.76716]
[1733264926985,1.34146292,3613.9,3613.8,2.76716]
[1733264928620,0.0272,3614.0,3613.9,2.76709]
[1733264928776,1.23532405,3614.0,3613.9,2.76709]
[1733264928976,1.37377105,3614.0,3613.9,2.76709]
[1733264930339,1.3738006,3614.0,3613.9,2.76709]
[1733264932803,0.27536511,3614.8,3614.7,2.76648]
[1733264932997,1.15512622,3615.1,3614.7,2.76648]
[1733264932998,0.2753928,3615.1,3614.7,5.19093778]
[1733264933203,0.2753928,3615.4,3615.3,2.76602]
[1733264933438,1.1012,3615.6,3615.4,2.76588]
[1733264934001,1.1012,3615.6,3614.7,2.42445778]
[1733264934002,1.1012,3615.9,3615.5,2.76586]
[1733264934202,1.1012,3615.9,3615.3,1.21465778]
[1733264934203,1.1012,3615.9,3615.6,2.76576]
[1733264936943,1.1284,3615.9,3615.6,2.76576]
[1733264937249,1.1284,3615.9,3615.7,2.76568]
[1733264939765,1.1284,3615.9,3615.6,1.21465778]
[1733264939766,0.0272,3615.9,3615.6,1.21465778]
[1733264939971,0.0272,3615.9,3615.8,2.76563]
[1733264949021,0.0272,3615.9,3615.6,1.21465778]
[1733264949219,0.0272,3615.9,3615.6,3.98038778]
[1733264949989,0.0272,3615.9,3615.7,2.76571]
[1733264951327,0.0272,3615.9,3615.6,1.21465778]
[1733264951539,0.0272,3615.9,3615.3,3.98059778]
[1733264952040,0.0272,3615.9,3614.5,3.0]
[1733264952041,1.0981,3615.8,3614.5,3.0]
[1733264952195,2.76574,3615.7,3614.8,1.21465778]
[1733264952394,1.56020274,3615.6,3614.8,1.21465778]
[1733264952630,0.20533614,3615.5,3614.8,3.98104778]
[1733264953240,0.20533614,3615.5,3614.9,2.76631]
[1733264953241,0.23253614,3615.5,3614.9,2.76631]
[1733264953398,2.99844614,3615.5,3614.4,4.06124]
[1733264953710,3.86412,3615.3,3614.4,3.98129778]
[1733264953906,0.46217528,3615.2,3614.4,3.98129778]
[1733264954437,0.20533614,3615.1,3614.4,3.98129778]
[1733264954650,1.0981,3615.0,3614.4,1.21465778]
[1733264954941,1.0981,3615.0,3613.5,3.98198778]
[1733264954942,1.0981,3614.6,3613.2,2.76762]
[1733264955144,0.20533614,3614.5,3613.2,2.76762]
[1733264955307,1.35493914,3614.6,3613.4,1.21465778]
[1733264955308,0.20533614,3614.4,3613.4,1.21465778]
[1733264955633,0.20533614,3614.3,3613.6,2.76725]
[1733264956351,0.0272,3614.4,3613.6,2.76732]
[1733264956700,0.23253614,3614.4,3613.6,2.76732]
[1733264957018,0.0272,3614.4,3613.6,2.76732]
[1733264957249,0.23253614,3614.4,3613.6,2.76732]
[1733264957535,0.20557881,3614.3,3613.6,2.76732]
[1733264958324,0.20557881,3614.2,3613.6,2.76732]
[1733264958531,0.20557881,3614.3,3613.6,2.76732]
[1733264959119,0.20557881,3614.3,3613.5,2.76737]
[1733264959907,0.20557881,3614.3,3613.6,2.76725]
[1733264961530,0.0272,3614.4,3613.6,2.76725]
[1733264961738,0.20557881,3614.3,3613.6,2.76725]
[1733264962940,1.0981,3614.1,3613.6,2.76725]
[1733264963248,0.20557881,3614.0,3613.6,2.76725]
[1733264963409,1.0981,3614.1,3613.6,2.76725]
[1733264963606,1.30367881,3614.1,3613.6,2.76725]
[1733264963914,1.0981,3614.1,3613.6,2.76725]
[1733264964343,1.30367881,3614.1,3613.6,2.76725]
[1733264964650,1.0981,3614.1,3613.6,2.76725]
[1733264968931,1.0981,3614.1,3613.7,2.76718]
[1733264969671,0.20557881,3614.3,3613.7,2.76718]
[1733264969875,1.1253,3614.4,3613.7,2.76718]
[1733264970077,1.33087881,3614.4,3613.7,2.76718]
[1733264970283,0.0272,3614.4,3614.3,3.98143778]
[1733264971049,0.0272,3614.4,3614.3,5.16523778]
[1733264977000,0.0272,3614.4,3614.3,2.76678]
[1733264978488,0.23258953,3614.4,3614.3,2.76678]
[1733264978696,0.0272,3614.4,3614.3,2.76678]
[1733264978892,0.23258953,3614.4,3614.3,2.76678]
[1733264979076,0.0272,3614.4,3614.3,2.76678]
[1733264979701,0.23258953,3614.4,3614.3,2.76678]
[1733264980079,0.0272,3614.4,3614.3,2.76678]
[1733264980306,0.23258953,3614.4,3614.3,2.76678]
[1733264981417,0.48932322,3614.4,3614.3,2.76678]
[1733264982003,0.48996682,3614.4,3614.3,3.44162178]
[1733264982184,0.48996682,3614.4,3614.3,7.70022178]
[1733264982185,0.23323313,3614.4,3614.3,7.70022178]
[1733264982385,0.0272,3614.4,3614.3,7.70022178]
[1733264997846,0.31531729,3614.4,3614.3,7.70022178]
[1733265000353,0.31531729,3614.4,3614.3,4.70022178]
[1733265000719,0.25803418,3614.8,3614.3,4.70022178]
[1733265000953,0.33029691,3615.0,3614.9,4.07472]
[1733265001247,0.41190715,3615.4,3615.1,2.76617]
[1733265001554,0.79476279,3615.3,3615.2,2.76609]
[1733265002068,0.79476279,3615.3,3615.2,3.98074778]
[1733265002216,0.79476279,3615.3,3615.2,4.78629456]
[1733265002409,0.82196279,3615.3,3615.2,4.78629456]
[1733265002612,0.49167176,3615.3,3615.2,4.78629456]
[1733265005631,0.49145308,3615.3,3615.2,4.78629456]
[1733265008336,0.2335347,3615.3,3615.2,4.78629456]
[1733265008547,4.7e-06,3615.3,3615.2,6.10159456]
[1733265008775,4.7e-06,3615.3,3615.2,9.10159456]
[1733265008940,0.33031126,3615.8,3615.7,4.08101]
[1733265009260,0.33022112,3616.1,3615.7,5.98034778]
[1733265009462,0.58823459,3616.0,3615.9,2.76556]
[1733265009637,0.25801347,3616.0,3615.9,2.76556]
[1733265010649,1.1421,3616.5,3615.9,2.76556]
[1733265010859,0.5882201,3616.4,3616.3,2.76525]
[1733265011248,0.25799127,3616.4,3616.3,2.76525]
[1733265012064,1.1421,3616.5,3616.4,2.76518]
[1733265012265,1.39997551,3616.5,3616.4,2.76518]
[1733265012639,1.39999619,3616.5,3616.4,2.76518]
[1733265012838,1.39999619,3616.5,3616.2,1.22809578]
[1733265012839,1.73010175,3616.5,3616.2,1.22809578]
[1733265013078,0.58800175,3616.4,3616.2,1.22809578]
[1733265013283,0.25789619,3616.3,3616.2,3.99342578]
[1733265015274,0.25789619,3616.4,3616.3,2.76525]
[1733265020791,0.46403888,3616.4,3616.3,2.76525]
[1733265023046,1.60613888,3616.4,3616.3,2.76525]
[1733265024245,0.46403888,3616.4,3616.3,2.76525]
[1733265024446,0.79396986,3616.4,3616.3,2.76525]
[1733265026754,0.794015,3616.4,3616.3,2.76525]
[1733265028779,1.20672113,3616.4,3616.3,2.76525]
[1733265029009,0.794015,3616.4,3616.3,2.76525]
[1733265029402,1.20672113,3616.4,3616.3,2.76525]
[1733265030300,1.20834529,3616.4,3616.3,2.76525]
[1733265032017,1.20834529,3616.4,3616.2,0.013438]
[1733265032314,2.35044529,3616.3,3616.2,0.013438]
[1733265032727,2.62585162,3616.3,3616.2,0.013438]
[1733265032893,3.30532006,3616.3,3616.2,0.013438]
[1733265033307,4.73781981,3616.3,3616.2,0.013438]
[1733265033620,2.76835275,3616.3,3616.2,0.013438]
[1733265033830,3.30568969,3616.3,3616.2,0.013438]
[1733265033989,2.35073988,3616.3,3616.2,0.013438]
[1733265034189,2.62633807,3616.3,3616.2,0.013438]
[1733265034424,2.62637263,3616.3,3616.2,0.013438]
[1733265034630,2.35073988,3616.3,3616.2,0.013438]
[1733265034794,2.62637146,3616.3,3616.2,0.013438]
[1733265035126,3.30598056,3616.3,3616.2,0.013438]
[1733265036416,3.30596659,3616.3,3616.2,0.013438]
[1733265037493,5.89392103,3616.3,3616.2,0.013438]
[1733265038334,4.46109281,3616.3,3616.2,0.013438]
[1733265039329,4.46134883,3616.3,3616.2,0.013438]
[1733265039536,3.30596659,3616.3,3616.2,0.013438]
[1733265039906,5.89427309,3616.3,3616.2,0.013438]
[1733265040248,4.46144487,3616.3,3616.2,0.013438]
[1733265040594,3.79014193,3616.3,3616.2,0.013438]
[1733265040797,4.46185112,3616.3,3616.2,0.013438]
[1733265041106,5.89466283,3616.3,3616.2,0.013438]
[1733265041332,4.46183461,3616.3,3616.2,0.013438]
[1733265041634,4.46201098,3616.3,3616.2,0.013438]
[1733265042527,4.73918455,3616.3,3616.2,0.013438]
[1733265043262,3.30635633,3616.3,3616.2,0.013438]
[1733265043920,2.16425633,3616.3,3616.2,2.778768]
[1733265044137,1.23622962,3616.3,3616.2,3.29811058]
[1733265044433,1.23634224,3616.3,3616.2,3.29811058]
[1733265044746,0.82296028,3616.3,3616.2,3.29811058]
[1733265047766,0.56459655,3616.3,3616.2,3.29811058]